[Event "Silver Lake Festival 2022"]
[Site "Veliko Gradiste"]
[Date "2022.06.23"]
[Round "6.2"]
[White "Anuj Shrivatri"]
[Black "Mohammad Nubairshah Shaikh"]
[Result "0-1"]
[ECO "B04"]
[WhiteElo "2356"]
[BlackElo "2443"]
[Annotator "TA"]
[PlyCount "115"]
[EventDate "2022.06.16"]
[EventType "swiss"]
[EventCountry "SRB"]
[SourceTitle "playchess.com"]
[Source "ChessBase"]
[SourceQuality "1"]
[TimeControl "5400+30"]

{[%evp 9,115,45,49,50,47,36,31,32,30,44,37,41,50,31,38,30,76,49,124,121,117,119,120,125,121,125,172,30,40,0,161,156,153,153,317,302,353,85,76,81,89,76,87,86,84,11,22,0,64,64,51,45,50,19,50,47,50,45,62,17,16,14,18,11,18,16,25,0,0,0,24,0,0,0,0,0,0,-17,-26,-100,-88,-156,-163,-179,-179,-179,-179,-220,-220,-214,-179,-1388,-1541,-1503,-1467,-1481,-1496,-1480,-1492,-1418,-1422,-1302,-1300,-1290,-1096,-2194,-2810,-800]} 1. e4 {[%emt 0:00:09][%cal Be2e4,Be4e5][%mdl 32]} Nf6 {[%emt 0:06:57][%cal Bg8f6,Bf6d5,Bd5b6,Bb6d7][%mdl 32]} 2. e5 {[%emt 0:00:10]} Nd5 {[%emt 0:00:01]} 3. d4 {[%emt 0:00:22]} d6 {[%emt 0:00:02]} 4. Nf3 {[%emt 0:00:20]} Nb6 {[%emt 0:00:17]} 5. Be2 {[%emt 0:06:25]} g6 {[%emt 0:02:54]} 6. a4 {[%emt 0:02:42] [#] B04: Alekhine's Defence: 4 Nf3.} dxe5 $146 {[%emt 0:02:45]} ({Predecessor:} 6... a5 7. exd6 cxd6 8. O-O Bg7 9. Nc3 O-O 10. Nb5 Bg4 11. h3 Bxf3 12. Bxf3 d5 13. Bf4 Qd7 {1-0 (47) Acs,P (2594)-Grimm,D (2236) Hungary 2015}) 7. Nxe5 {[%emt 0:00:45]} Bg7 {[%emt 0:00:11]} 8. a5 {[%emt 0:06:30] White is slightly better.} N6d7 {[%emt 0:00:28]} 9. Nf3 {[%emt 0:12:27]} c5 {[%emt 0:05:27]} 10. d5 {[%emt 0:02:09] Against Nc6} O-O {[%emt 0:00:56]} 11. O-O {[%emt 0:06:59]} Na6 {[%emt 0:10:22]} 12. Nc3 {[%emt 0:07:20]} b6 {[%emt 0:00:19]} (12... Nf6 $11) 13. d6 {[%emt 0:08:47]} Bb7 {[%emt 0:08:31]} (13... exd6 $14 14. axb6 (14. Qxd6 Nf6 $14) 14... axb6) 14. Bxa6 $16 {[%emt 0:07:30]} Bxa6 {[%emt 0:00:12]} 15. dxe7 {[%emt 0:00:14]} Qxe7 {[%emt 0:00:14]} 16. Re1 {[%emt 0:02:36]} Qd8 {[%emt 0:00:42]} 17. Bg5 {[%emt 0:05:10]} Bf6 {[%emt 0:06:52]} (17... f6 $16 {might work better.}) 18. Bh6 {[%emt 0:03:10]} (18. Ne4 $18 Bxg5 19. Nfxg5 (19. Nexg5 Bb7 $14)) 18... Bg7 $11 {[%emt 0:02:25]} 19. Bg5 {[%emt 0:00:35]} (19. Bxg7 $14 Kxg7 20. Qd2) 19... Bf6 $1 $18 {[%emt 0:00:32]} 20. Ne4 $1 {[%emt 0:00:18]} Bxg5 {[%emt 0:01:15]} 21. Nfxg5 {[%emt 0:00:07]} ({Don't play} 21. Nexg5 $6 Bb5 $14) 21... Bb5 {[%emt 0:07:15]} (21... Ne5 $16) 22. Qd5 {[%emt 0:06:54]} Rc8 {[%emt 0:11:00]} 23. Nd6 $2 {[%emt 0:02:38]} (23. Qb3 $18 Bc6 24. Rad1) 23... Bc6 $16 {[%emt 0:06:59]} 24. Qd2 {[%emt 0:00:09]} Nf6 {[%emt 0:02:18]} 25. Rad1 {[%emt 0:00:14]} Rc7 {[%emt 0:01:17]} 26. axb6 {[%emt 0:04:52]} axb6 {[%emt 0:00:08]} 27. Ndxf7 {[%emt 0:01:33] Pair of Knights!} (27. Qe2 $1 $16 {Threatens to win with Ndxf7.} Rd7 28. Ndxf7 Rfxf7 29. Nxf7 Kxf7 30. Qe6+ Kg7 31. Rxd7+ Bxd7 32. Qd6) 27... Qxd2 $11 {[%emt 0:02:23]} 28. Rxd2 {[%emt 0:00:09]} Rcxf7 {[%emt 0:05:36]} (28... Rfxf7 $11 29. Rd8+ Kg7 30. Ne6+ Kh6 31. Nxc7 Rxc7) 29. Nxf7 $14 {[%emt 0:02:11]} Kxf7 {[%emt 0:11:24]} 30. Rd6 {[%emt 0:00:07]} Be4 {[%emt 0:01:28]} 31. c4 {[%emt 0:02:16][%mdl 1024] White has compensation.} Ra8 {[%emt 0:03:30]} 32. f3 {[%emt 0:00:22]} Bc2 {[%emt 0:00:11]} 33. Rxb6 {[%emt 0:01:33]} Ra7 {[%emt 0:00:25] Inhibits Rb7+.} 34. Rc6 {[%emt 0:01:54]} Nd7 {[%emt 0:00:02]} 35. Rce6 {[%emt 0:00:56][%cal Bc6e6,Be6e5,Be5d5][%mdl 32] Hoping for Re7+.} Nf8 {[%emt 0:00:40]} 36. R6e5 {[%emt 0:00:57]} Rc7 {[%emt 0:00:01]} 37. g4 {[%emt 0:00:25]} h6 {[%emt 0:01:38]} 38. R1e3 {[%emt 0:00:23]} g5 $1 {[%emt 0:00:36]} 39. Rc3 {[%emt 0:00:19]} Nd7 {[%emt 0:01:10]} 40. Rd5 {[%emt 0:01:38]} Bg6 {[%emt 0:00:02]} 41. Kf2 {[%emt 0:00:31]} Kg7 {[%emt 0:00:41]} 42. Re3 {[%emt 0:01:39] Strongly threatening Re7+.} Nb6 {[%emt 0:00:20][%csl LRc4,LRd5]} 43. Rd8 {[%emt 0:01:38]} Nxc4 {[%emt 0:00:06]} 44. Re2 {[%emt 0:00:21]} (44. Rb3 $1 $11) 44... Rb7 $17 {[%emt 0:00:00]} 45. Kg3 {[%emt 0:01:24]} ({White should try} 45. b3 Na5 46. Red2) 45... Nxb2 {[%emt 0:00:33]} ({Stronger than} 45... Rxb2 46. Re1 $15) 46. h4 {[%emt 0:00:13] [#]} Nd3 $1 {[%emt 0:00:19]} 47. Rc8 {[%emt 0:00:40] [#]} Bf7 $1 {[%emt 0:00:55] Inhibits Ra2.} 48. hxg5 {[%emt 0:00:37]} hxg5 {[%emt 0:00:02]} 49. Re4 {[%emt 0:01:16]} Rb2 {[%emt 0:00:35]} 50. f4 $2 {[%emt 0:01:28]} (50. Rc7 Rb6 51. Re3) 50... Bd5 $19 {[%emt 0:01:05] Black is clearly winning.} 51. Rc7+ {[%emt 0:00:54]} Kg6 {[%emt 0:00:07]} 52. f5+ {[%emt 0:00:50]} Kf6 {[%emt 0:00:15]} 53. Rc6+ {[%emt 0:00:42]} Bxc6 {[%emt 0:00:35]} 54. Re6+ {[%emt 0:00:06]} Kf7 {[%emt 0:00:03]} 55. Rxc6 {[%emt 0:00:05]} Rb3 {[%emt 0:01:40]} 56. Rc7+ {[%emt 0:00:08]} Kf6 {[%emt 0:00:03][%cal Oc5c4] And now ...c4! would win.} 57. Rc6+ {[%emt 0:00:15]} Ke5 {[%emt 0:00:14] ( -> ...Nb4+)} 58. Re6+ {[%emt 0:00:09] What a bad dream for White.  Weighted Error Value: White=0.50/Black=0.12 (very precise)} 0-1

[Event "Silver Lake Festival 2022"]
[Site "Veliko Gradiste"]
[Date "2022.06.23"]
[Round "6.3"]
[White "Song, Raymond"]
[Black "Zanan, Evgeny"]
[Result "1-0"]
[ECO "B51"]
[WhiteElo "2485"]
[BlackElo "2534"]
[Annotator "TA"]
[PlyCount "77"]
[EventDate "2022.06.16"]
[EventType "swiss"]
[EventCountry "SRB"]
[SourceTitle "playchess.com"]
[Source "ChessBase"]
[SourceQuality "1"]
[TimeControl "5400+30"]

{[%evp 9,77,22,18,14,16,20,15,18,25,20,18,20,29,30,23,22,32,32,20,28,28,25,21,17,27,15,20,30,36,17,9,42,37,0,0,0,0,-4,0,-2,0,0,0,0,0,0,0,0,19,12,17,18,20,31,46,50,116,60,404,409,502,489,846,805,840,841,840,834,791,694]} 1. e4 {[%emt 0:00:03]} c5 {[%emt 0:09:16]} 2. Nf3 {[%emt 0:00:06]} d6 {[%emt 0:00:58]} 3. Bb5+ {[%emt 0:00:06]} Nd7 {[%emt 0:00:57]} 4. a4 {[%emt 0:00:07]} Ngf6 {[%emt 0:01:04]} 5. Nc3 {[%emt 0:00:07]} e6 {[%emt 0:11:16]} 6. d4 {[%emt 0:00:18] B51: Sicilian: Moscow Variation (3 Bb5+) without 3...Bd7.} cxd4 {[%emt 0:02:26]} 7. Qxd4 {[%emt 0:00:06]} a6 {[%emt 0:00:34]} 8. Be2 {[%emt 0:02:05] The position is equal.} b6 {[%emt 0:07:51]} 9. O-O {[%emt 0:00:11]} Bb7 {[%emt 0:00:03]} 10. Rd1 {[%emt 0:00:04]} Qc7 {[%emt 0:07:01]} 11. Be3 {[%emt 0:01:38]} Be7 {[%emt 0:04:01]} 12. Nd2 $1 {[%emt 0:00:09]} O-O {[%emt 0:04:24]} 13. Nc4 {[%emt 0:00:17][%cal Rc4d6]} d5 {[%emt 0:06:37]} 14. exd5 {[%emt 0:00:06]} Nxd5 {[%emt 0:00:05]} 15. Nxd5 {[%emt 0:00:05]} Bxd5 {[%emt 0:00:06]} 16. Bf4 {[%emt 0:00:02]} Qb7 {[%emt 0:06:16]} 17. Nd6 {[%emt 0:00:05]} Bxd6 {[%emt 0:00:55]} (17... Qc6 18. Nf5 $1 exf5 19. Qxd5 Qxd5 20. Rxd5 $16) 18. Bxd6 {[%emt 0:00:05]} Rfc8 {[%emt 0:00:04]} 19. Ra3 {[%emt 0:00:05] Threatens to win with c4.} Qc6 {[%emt 0:06:27] [#] Prevents c4.} 20. Rg3 $1 {[%emt 0:00:18][%csl Gg3][%cal Rd4g7]} g6 {[%emt 0:01:12]} 21. Bf4 {[%emt 0:05:57] Black must now prevent Bh6. A strong pair of Bishops.} (21. Bb4 $5 {[%cal Rc2c4]} Qxc2 22. Bf1 $11 (22. Bc3 $2 Rxc3 23. Rxc3 Qxe2 $19)) 21... Qxc2 {[%emt 0:05:36]} 22. Bh6 {[%emt 0:00:07][%csl Gh6][%cal Rd4g7]} f6 {[%emt 0:00:09] [#]} 23. Bf1 $146 {[%emt 0:02:31]} ({Predecessor:} 23. Re1 Qe4 24. Qd1 Qc2 25. Qd4 Qe4 26. Qd1 Qc2 27. Qa1 Ne5 28. h4 Nf7 29. Be3 {1-0 (42) Carlsen,M (2863)-Wei,Y (2732) chess24.com INT 2020}) 23... Kf7 {[%emt 0:05:21]} 24. h4 {[%emt 0:01:06][%cal Oh4h5]} Qc5 {[%emt 0:03:52]} 25. Qg4 {[%emt 0:06:23]} Ne5 {[%emt 0:02:55]} 26. Qf4 {[%emt 0:01:12]} Qc2 {[%emt 0:00:57][%csl LRb2,LRd1]} 27. Re1 {[%emt 0:03:05] Hoping for Rxe5.} Qf5 {[%emt 0:08:36]} 28. Qd4 {[%emt 0:00:13]} Nc6 {[%emt 0:04:02]} 29. Qxb6 {[%emt 0:01:56]} a5 {[%emt 0:01:24]} 30. Bd2 {[%emt 0:16:57]} (30. Qb7+ Ne7 31. Qd7 Rc2 $15) 30... Rab8 {[%emt 0:00:19]} 31. Qa6 {[%emt 0:00:10]} Ra8 {[%emt 0:00:09]} 32. Qe2 {[%emt 0:00:52]} ({Reject} 32. Qb7+ Ne7 33. Qd7 (33. Qb6 Rab8 $11) 33... e5 34. Qxf5 (34. Bb5 Qxd7 35. Bxd7 Rd8 $15) 34... Nxf5 $11) 32... Nb4 {[%emt 0:00:56]} ({Black should try} 32... Ne5 $14) 33. Qe3 {[%emt 0:04:20]} (33. Bxb4 $16 axb4 34. Qd2) 33... Kg8 $2 {[%emt 0:00:01][%mdl 8192] [#] Black cannot hold the game after this.} (33... Nc2 $1 $14 34. Qh6 Qh5 35. Qxh5 gxh5) 34. Qh6 $1 $18 {[%emt 0:00:46] aiming for Bxb4.} Rc2 {[%emt 0:00:29]} 35. h5 {[%emt 0:01:08] White is clearly winning.} g5 {[%emt 0:00:46] [#]} (35... Ra7 $142 36. hxg6 Rg7 37. gxh7+ Qxh7 38. Qxh7+ Kxh7) 36. Bxg5 $1 {[%emt 0:00:42][%mdl 512]} Qxf2+ {[%emt 0:00:06]} 37. Kh2 {[%emt 0:00:03][%cal Oe1e3] White wants to mate with Ree3!} Qxe1 {[%emt 0:01:10]} 38. Bxf6+ {[%emt 0:01:05][%mdl 64] Discovered Attack} Qxg3+ {[%emt 0:00:05]} 39. Kxg3 {[%emt 0:00:04] Weighted Error Value: White=0.04 (flawless) /Black=0.25 (precise)} 1-0

[Event "Silver Lake Festival 2022"]
[Site "Veliko Gradiste"]
[Date "2022.06.23"]
[Round "6.4"]
[White "Mamedov, Edgar"]
[Black "Strikovic, Aleksa"]
[Result "0-1"]
[ECO "A21"]
[WhiteElo "2004"]
[BlackElo "2502"]
[Annotator "TA"]
[PlyCount "118"]
[EventDate "2022.06.16"]
[EventType "swiss"]
[EventCountry "SRB"]
[SourceTitle "playchess.com"]
[Source "ChessBase"]
[SourceQuality "1"]
[TimeControl "5400+30"]

{[%evp 16,118,0,0,14,0,0,0,19,10,15,-8,24,0,0,-29,0,-53,-16,-120,-132,-149,-155,-154,-132,-148,-143,-140,-124,-146,-88,-135,-104,-113,-45,-85,-105,-101,-110,-108,-109,-219,-61,-62,0,0,13,-25,-34,-20,-31,-62,-56,-69,-61,-139,-123,-132,-139,-136,-144,-135,-134,-273,-5,-273,-266,-266,-261,-250,-248,-262,-254,-237,-173,-225,-136,-130,-64,-64,-63,-131,-131,-131,-131,-245,-191,-819,-803,-970,-970,-581,-581,-5700,-4622,-29967,-29949,-29989,-29990,-29990,-29991,-29991,-29992,-29992,-29993]} 1. d4 {[%emt 0:00:03]} d6 {[%emt 0:04:16]} 2. c4 {[%emt 0:00:11]} e5 {[%emt 0:00:06]} 3. Nf3 {[%emt 0:00:07]} e4 {[%emt 0:00:06]} 4. Ng5 {[%emt 0:00:25]} f5 {[%emt 0:00:13]} 5. Nc3 {[%emt 0:01:02]} Be7 {[%emt 0:00:06]} 6. Nh3 {[%emt 0:01:00]} Nf6 {[%emt 0:00:17]} 7. e3 {[%emt 0:02:47]} O-O {[%emt 0:01:05]} 8. Be2 {[%emt 0:01:01]} c6 {[%emt 0:00:20]} 9. O-O {[%emt 0:03:08]} Na6 {[%emt 0:12:30] A21: English Opening: 1...e5 2 Nc3.} 10. Bd2 {[%emt 0:05:31]} Nc7 {[%emt 0:01:26]} 11. Qb3 {[%emt 0:03:52]} Kh8 {[%emt 0:23:30] The position is equal.} 12. d5 {[%emt 0:14:09]} Nd7 {[%emt 0:07:17] [#]} 13. Rad1 $146 {[%emt 0:20:57]} ({Predecessor:} 13. Nf4 Ne5 14. Rad1 Bf6 15. Nh5 Bg5 16. f4 exf3 17. gxf3 Bh4 18. f4 Ng4 19. Bxg4 fxg4 20. Be1 Bxe1 21. Rfxe1 {½-½ (21) Nicolenco,S (2075)-Orsolic,M (2136) LSS email 2011}) 13... Ne5 {[%emt 0:10:13]} 14. f3 {[%emt 0:05:34]} exf3 {[%emt 0:04:33]} 15. gxf3 {[%emt 0:00:24]} Qe8 {[%emt 0:02:18][%cal Ob7b5]} 16. f4 {[%emt 0:08:10]} (16. Nf4 $11) 16... Ng4 {[%emt 0:00:57]} 17. Bf3 {[%emt 0:02:12]} (17. Bxg4 $11 fxg4 18. Ng5) 17... Qh5 $17 {[%emt 0:06:25]} 18. Bg2 {[%emt 0:00:34]} cxd5 $1 {[%emt 0:01:16]} 19. cxd5 {[%emt 0:00:56]} Na6 $1 {[%emt 0:00:20]} 20. Qc4 {[%emt 0:12:08]} Bd7 {[%emt 0:01:59]} 21. b4 {[%emt 0:01:01]} Rac8 {[%emt 0:00:09]} 22. Qb3 {[%emt 0:00:10]} Bf6 {[%emt 0:00:17]} (22... Nc7 $142 23. Rc1 Bh4) 23. Rc1 {[%emt 0:03:54]} (23. Ne2 $142) 23... h6 {[%emt 0:05:39]} 24. a4 {[%emt 0:01:21]} Qe8 {[%emt 0:10:05]} (24... Bd8 $17) 25. Nb5 {[%emt 0:05:22]} Rxc1 {[%emt 0:00:50]} 26. Rxc1 {[%emt 0:00:08]} Bxb5 {[%emt 0:00:03]} 27. axb5 {[%emt 0:00:13]} Qxb5 {[%emt 0:00:02]} 28. Nf2 {[%emt 0:01:34]} (28. Bf1 $17 Qb6 29. Be2) 28... Nxf2 $2 {[%emt 0:00:21]} (28... Qe2 $19 29. Nxg4 Qxd2) 29. Kxf2 $15 {[%emt 0:00:11]} Nc5 {[%emt 0:00:20]} 30. Qc4 $11 {[%emt 0:00:11]} Nd3+ {[%emt 0:02:33]} 31. Kf1 {[%emt 0:00:26]} a6 {[%emt 0:00:25]} 32. Qxb5 {[%emt 0:01:21]} axb5 {[%emt 0:00:02]} 33. Rc7 {[%emt 0:01:26]} Ra8 {[%emt 0:00:02] And now ...Ra2 would win.} 34. Ke2 {[%emt 0:02:03]} Nb2 {[%emt 0:00:12]} 35. Rxb7 {[%emt 0:00:47]} (35. Be1 $1 $15) 35... Nc4 $17 {[%emt 0:00:40] Hoping for ...Ra2.} 36. Be1 {[%emt 0:00:52]} ({Don't go for} 36. Rxb5 $2 Ra2 37. Kd3 (37. Rb8+ $2 Kh7 $19) 37... Nxd2 $19) 36... Ra3 {[%emt 0:03:22]} 37. Bf2 {[%emt 0:00:37]} Ra2+ {[%emt 0:00:20]} 38. Kf3 {[%emt 0:00:41]} g5 {[%emt 0:00:28][%cal Bg7g5,Bg5g4][%mdl 32] Against h4. Black is more active.} 39. Rf7 {[%emt 0:01:47]} (39. h3 $17) 39... g4+ $1 $19 {[%emt 0:01:13]} 40. Kg3 {[%emt 0:00:06] [#]} Bh4+ {[%emt 0:00:19][%mdl 512]} 41. Kxh4 {[%emt 0:00:05] Threatens to win with Kg3.} Rxf2 {[%emt 0:00:03][%mdl 4096] Endgame KRB-KRN} 42. Kg3 {[%emt 0:01:01]} Re2 {[%emt 0:00:09]} 43. Bf1 {[%emt 0:01:01]} Rxe3+ {[%emt 0:00:01]} 44. Kg2 {[%emt 0:00:52]} Re4 {[%emt 0:00:45] Strongly threatening ...Ne3+.} 45. Bxc4 {[%emt 0:00:24]} (45. Kg3 {is a better defense.}) 45... bxc4 {[%emt 0:00:25] KR-KR} 46. Rc7 {[%emt 0:00:57]} c3 {[%emt 0:00:23]} (46... Rd4 $17 47. Kg3 Rd3+ 48. Kg2 Rd4) 47. Rxc3 $15 {[%emt 0:00:12]} Rxb4 {[%emt 0:00:03]} 48. Rc6 {[%emt 0:00:38]} (48. Kg3 $1 $15) 48... Rxf4 $17 {[%emt 0:00:02] aiming for ...Kg7.} 49. Rxd6 {[%emt 0:00:08]} Kg7 {[%emt 0:00:02] White must now prevent ...h5.} 50. Re6 {[%emt 0:00:59]} (50. Ra6 $17 {was worth a try.}) 50... Rd4 $19 {[%emt 0:00:02]} 51. d6 {[%emt 0:00:33]} (51. Kg3) 51... f4 {[%emt 0:00:56]} 52. h3 {[%emt 0:00:17]} h5 {[%emt 0:01:54][%cal Bh6h5,Bh5g4,Bg4g3,Bg3g2][%mdl 32]} 53. hxg4 {[%emt 0:00:24]} hxg4 {[%emt 0:00:02]} 54. Kf2 {[%emt 0:00:21] [#]} Kf7 $1 {[%emt 0:00:30]} 55. Rh6 {[%emt 0:00:38] [#]} g3+ $1 {[%emt 0:02:17] Black mates.} 56. Ke2 {[%emt 0:00:50]} g2 {[%emt 0:00:18]} 57. Kf2 {[%emt 0:00:31]} Rd2+ {[%emt 0:00:05]} 58. Kg1 {[%emt 0:00:18]} f3 {[%emt 0:00:06]} 59. Kh2 {[%emt 0:00:29]} Rd1 {[%emt 0:00:11] Weighted Error Value: White=0.69/Black=0.15 (very precise)} 0-1

[Event "Silver Lake Festival 2022"]
[Site "Veliko Gradiste"]
[Date "2022.06.23"]
[Round "6.5"]
[White "Damljanovic, Branko"]
[Black "Manish Anto Cristiano F"]
[Result "1/2-1/2"]
[ECO "A28"]
[WhiteElo "2469"]
[BlackElo "2071"]
[Annotator "TA"]
[PlyCount "105"]
[EventDate "2022.06.16"]
[EventType "swiss"]
[EventCountry "SRB"]
[SourceTitle "playchess.com"]
[Source "ChessBase"]
[SourceQuality "1"]
[TimeControl "5400+30"]

{[%evp 10,105,0,-13,8,2,0,1,1,1,1,1,1,4,2,0,0,0,8,0,0,7,16,0,0,0,0,0,0,-7,-7,-6,-6,-12,-12,-12,-10,-28,-6,-36,0,-19,-12,-16,0,-12,0,0,0,0,0,0,0,0,0,0,0,0,0,0,0,0,0,0,0,0,0,0,0,0,0,0,0,0,0,0,0,0,0,0,0,0,0,0,0,0,0,0,0,0,0,0,0,0,0,0,0,0]} 1. c4 {[%emt 0:04:24]} e5 {[%emt 0:00:13]} 2. Nc3 {[%emt 0:00:32]} Nf6 {[%emt 0:00:13][%cal Bg8f6,Bf6d5,Bd5c3][%mdl 32]} 3. Nf3 {[%emt 0:02:23]} Nc6 {[%emt 0:00:44]} 4. a3 {[%emt 0:00:19]} d5 {[%emt 0:05:38]} 5. d4 {[%emt 0:03:29]} exd4 {[%emt 0:12:16]} 6. Nxd4 {[%emt 0:04:41]} Ne5 {[%emt 0:08:19] A28: English Opening: Four Knights Variation.} 7. cxd5 {[%emt 0:08:20]} Nxd5 {[%emt 0:04:45]} 8. Ndb5 {[%emt 0:01:41]} Nxc3 {[%emt 0:01:26][%csl Gc3][%cal Rd8d1] [#]} 9. Qxd8+ {[%emt 0:00:02]} Kxd8 {[%emt 0:00:11]} 10. Nxc3 {[%emt 0:00:03]} Be6 {[%emt 0:04:27]} 11. Bf4 {[%emt 0:01:30]} Bd6 {[%emt 0:00:29][%cal Oe5d3] [#]} 12. e3 $146 {[%emt 0:00:27]} ({Predecessor:} 12. g3 Nc4 13. O-O-O Ke7 14. Nd5+ Bxd5 15. Rxd5 c6 16. Bxd6+ Nxd6 17. Rd3 Rad8 18. Bg2 {½-½ (28) Drogi,G (2234)-Milani,O (2257) IECG email 2003}) 12... Ke7 {[%emt 0:02:30]} 13. Be2 {[%emt 0:01:37]} Nc4 {[%emt 0:03:42]} 14. Bxc4 {[%emt 0:00:36]} Bxc4 {[%emt 0:00:23]} 15. Bxd6+ {[%emt 0:00:02]} Kxd6 {[%emt 0:01:17]} 16. O-O-O+ {[%emt 0:00:09]} Ke7 {[%emt 0:01:22]} 17. Rd4 {[%emt 0:04:20]} Be6 {[%emt 0:00:36]} 18. Rhd1 {[%emt 0:00:02]} Rad8 {[%emt 0:01:01]} 19. Rxd8 {[%emt 0:04:26]} Rxd8 {[%emt 0:00:09]} 20. Rxd8 {[%emt 0:00:06]} Kxd8 $11 {[%emt 0:00:07][%mdl 4096] Endgame KB-KN} 21. b4 {[%emt 0:00:02]} Kd7 {[%emt 0:01:55]} 22. Kd2 {[%emt 0:00:01]} c5 {[%emt 0:02:58]} 23. Kd3 {[%emt 0:01:29]} Kc6 {[%emt 0:01:13]} 24. e4 {[%emt 0:01:33]} b6 {[%emt 0:01:36]} 25. b5+ {[%emt 0:01:28] The position is equal.} Kd6 {[%emt 0:05:39]} 26. f4 {[%emt 0:01:54]} f6 {[%emt 0:00:11]} 27. g3 {[%emt 0:01:20]} Bf7 {[%emt 0:00:58]} 28. Nd1 {[%emt 0:16:58]} Be8 {[%emt 0:03:57]} 29. a4 {[%emt 0:01:13]} Bf7 {[%emt 0:02:42]} 30. Ne3 {[%emt 0:07:43]} Bb3 {[%emt 0:02:20]} 31. Nc4+ $1 {[%emt 0:02:45]} Kc7 {[%emt 0:01:41]} 32. Nb2 {[%emt 0:00:22]} ({Reject} 32. a5 bxa5 33. Nxa5 Ba4 $17) 32... Ba2 {[%emt 0:04:18]} 33. Kc2 {[%emt 0:05:08] Against Bb1+} Kd6 {[%emt 0:01:51]} 34. Kc3 {[%emt 0:00:03]} Ke7 {[%emt 0:07:26]} 35. Nc4 {[%emt 0:05:41]} Bxc4 {[%emt 0:02:03]} 36. Kxc4 {[%emt 0:00:02] KP-KP} Ke6 {[%emt 0:00:15]} 37. Kc3 {[%emt 0:02:44]} Kd6 {[%emt 0:00:21]} 38. Kc4 {[%emt 0:00:01]} Ke6 {[%emt 0:00:09]} 39. Kc3 {[%emt 0:00:02]} g5 {[%emt 0:00:14]} 40. Kc4 {[%emt 0:00:07]} Kd6 {[%emt 0:00:53]} 41. Kc3 {[%emt 0:00:02]} Ke6 {[%emt 0:00:13]} 42. Kc4 {[%emt 0:00:01]} Kd6 {[%emt 0:00:14]} 43. Kc3 {[%emt 0:00:01]} Ke6 {[%emt 0:00:14]} 44. Kc4 {[%emt 0:00:01]} h5 {[%emt 0:00:41]} 45. h4 {[%emt 0:00:09]} gxf4 {[%emt 0:00:13]} 46. gxf4 {[%emt 0:00:01]} Kd6 {[%emt 0:00:10]} 47. Kd3 {[%emt 0:00:04]} Ke6 {[%emt 0:00:10]} 48. Kc3 {[%emt 0:00:02]} Kd6 {[%emt 0:00:08]} 49. Kc4 {[%emt 0:00:02]} Ke6 {[%emt 0:00:08]} 50. Kd3 {[%emt 0:01:35]} Kd6 {[%emt 0:00:02]} 51. Kc4 {[%emt 0:00:08]} Ke6 {[%emt 0:00:07]} 52. Kc3 {[%emt 0:00:03]} Kd6 {[%emt 0:00:06]} 53. Kc4 {[%emt 0:25:06] An even fight not without its subleties.  Weighted Error Value: White=0.04 (flawless) /Black=0.04 (flawless)} 1/2-1/2